{"text_format":"2","workbook":"xlsx","n_sheets":6,"sheets":["Resumo Posto","Resumo Valor","Resumo Qtd","Aux. Serviços Gerais","Uniformes - 13ª SR","Insumos e EPIs - 13ª SR"],"not_rendered":{"charts":0,"images":4,"macros":0,"external_links":0,"defined_names":8,"comments":0,"pivot_tables":0},"unopened":[],"bounds":{"document_bytes":16777216,"sheet_cells":100000,"run_cost":"one","rows_first":2000,"rows_last":500,"rows_between":2000,"halvings":0,"cell_chars":16384,"cell_head_chars":4096},"cells_cut":0,"cells_raw":0,"read":"whole","date_system":"1900"}

{"sheet":"Resumo Posto","index":0,"n_rows":8,"n_cols":8,"rows_kept":8,"cut":false,"hidden":false,"merged":[[4,0,4,7]]}
[]
[]
[]
[]
["RESUMO - PLANILHA DE CUSTOS E FORMAÇÃO DE PREÇOS"]
[]
["Tipo de serviço (A)","Jornada de trabalho","Valor Estimado por empregado (B)","Qtde de empregados por posto(C )","Valor Estimado por posto (D) = (B x C)*","Qtde de postos\n(E)","Valor total  do serviço mensal (F) = (D x E)","Valor total  do serviço p/12 meses: (G) = (Fx12)"]
["Auxiliar de Serviços Gerais","44h/semanais",{"$f":"'Aux. Serviços Gerais'!E135","v":0},null,{"$f":"C8*D8","v":0},null,{"$f":"E8*F8","v":0}]

{"sheet":"Resumo Valor","index":1,"n_rows":10,"n_cols":9,"rows_kept":10,"cut":false,"hidden":false,"merged":[[1,1,1,8],[3,1,3,8],[5,3,5,8],[6,7,7,7],[6,8,7,8],[9,1,9,7],[6,1,7,1],[6,2,7,2],[6,3,7,3],[6,4,7,4],[6,5,7,5],[6,6,7,6]]}
[]
[null,"Processo nº 59512.000328/2025-65"]
[]
[null,"Objeto: PRESTAÇÃO DE SERVIÇOS CONTÍNUOS DE LIMPEZA/ASSEIO E CAPINAGEM LEVE, COM FORNECIMENTO DE MÃO DE OBRA COM DEDICAÇÃO EXCLUSIVA, DE UNIFORMES, DE MATERIAIS, UNIFORMES E EQUIPAMENTOS DE PROTEÇÃO INDIVIDUAL (EPIs), PARA EXECUÇÃO NAS DEPENDÊNCIAS DA 13ª SUPERINTENDÊNCIA REGIONAL DA CODEVASF, NO MUNICÍPIO DE JOÃO PESSOA E REGIÃO METROPOLITANA, NO ESTADO DA PARAÍBA."]
[]
[null,null,null,"\n"]
[null,"ITEM","DISCRIMINAÇÃO","UNIDADE","Nº DE MESES","Nº DE POSTOS/MÊS","QUANT.","PREÇO UNITÁRIO","TOTAL"]
[]
[null,1,"AUXILIAR DE SERVIÇOS GERAIS","posto/mês"]
[null,"TOTAL GERAL:",{"$nulls":6},{"$f":"I9","v":0}]

{"sheet":"Resumo Qtd","index":2,"n_rows":8,"n_cols":6,"rows_kept":8,"cut":false,"hidden":false,"merged":[[5,1,6,1],[5,2,6,2],[5,3,6,3],[5,4,6,4],[5,5,6,5]]}
[]
[]
[]
[]
[]
[null,"ITEM","DISCRIMINAÇÃO","UNIDADE","Nº DE MESES","Nº DE POSTOS/MÊS"]
[]
[null,1,"AUXILIAR DE SERVIÇOS GERAIS","posto/mês",null,{"$f":"'Resumo Posto'!F8","v":0}]

{"sheet":"Aux. Serviços Gerais","index":3,"n_rows":135,"n_cols":5,"rows_kept":135,"cut":false,"hidden":false,"merged":[[18,3,18,4],[25,1,25,2],[25,3,25,4],[26,1,26,2],[26,3,26,4],[21,0,21,4],[22,0,22,4],[23,1,23,2],[23,3,23,4],[7,0,7,4],[8,0,8,4],[9,0,9,4],[11,0,11,4],[12,1,12,2],[12,3,12,4],[24,1,24,2],[24,3,24,4],[17,0,17,4],[13,1,13,2],[13,3,13,4],[14,1,14,2],[14,3,14,4],[15,1,15,2],[15,3,15,4],[18,0,18,1],[29,0,29,4],[30,0,30,4],[31,1,31,2],[32,1,32,2],[33,1,33,2],[34,0,34,3],[27,1,27,2],[27,3,27,4],[28,1,28,2],[28,3,28,4],[44,1,44,2],[45,1,45,2],[45,5,45,8],[46,1,46,2],[47,1,47,2],[47,5,47,8],[36,0,36,4],[37,0,37,4],[38,1,38,2],[39,1,39,2],[41,0,41,2],[43,0,43,4],[55,0,55,4],[56,1,56,2],[57,1,57,2],[58,1,58,2],[59,1,59,2],[60,1,60,2],[48,1,48,2],[49,1,49,2],[50,1,50,2],[51,1,51,2],[52,1,52,2],[53,0,53,2],[66,1,66,2],[67,1,67,2],[68,1,68,2],[69,1,69,2],[70,0,70,2],[72,0,72,4],[61,1,61,2],[62,0,62,3],[64,0,64,4],[65,0,65,4],[80,1,80,2],[81,0,81,2],[83,0,83,4],[84,0,84,4],[86,1,86,2],[87,1,87,2],[73,0,73,4],[74,1,74,2],[75,1,75,2],[76,1,76,2],[78,1,78,2],[79,1,79,2],[85,0,85,3],[77,1,77,2],[95,0,95,4],[96,1,96,2],[97,1,97,2],[98,0,98,3],[88,1,88,2],[89,1,89,2],[90,1,90,2],[91,1,91,2],[92,1,92,2],[93,0,93,2],[130,1,130,3],[131,1,131,3],[132,0,132,3],[133,1,133,3],[134,0,134,3],[123,0,123,2],[125,0,125,4],[126,0,126,3],[127,1,127,3],[128,1,128,3],[129,1,129,3],[19,0,19,1],[19,3,19,4],[114,0,114,4],[115,0,115,4],[116,1,116,2],[117,1,117,2],[118,1,118,2],[119,0,122,0],[119,1,119,2],[120,1,120,2],[121,1,121,2],[122,1,122,2],[108,1,108,3],[109,1,109,3],[110,1,110,3],[111,0,111,3],[99,0,99,4],[100,0,100,4],[101,1,101,2],[102,1,102,2],[103,1,103,2],[104,0,104,2],[106,0,106,4],[107,0,107,4]]}
{"$rows_empty":7}
["PLANILHA DE CUSTOS E FORMAÇÃO DE PREÇOS "]
["Processo Nº 59512.000328/2025-65"]
["Pregão Eletrônico nº   "]
[]
["DISCRIMINAÇÃO DOS SERVIÇOS (dados referentes à contratação)"]
["A","Data de Apresentação da Proposta"]
["B","Municipio/UF"]
["C","Ano Acordo, Convenção ou Dissidio Coletivo"]
["D","Nº de meses de execução contratual"]
[]
["Identificação do Serviço"]
["Tipo de serviço",null,"Unidade de Medida","Quantidade total a contratar (considerando o m²)"]
["Auxiliar de Serviços Gerais",null,"Posto de serviço"]
[]
["MÃO-DE-OBRA VINCULADA À EXECUÇÃO CONTRATUAL"]
["DADOS COMPLEMENTARES PARA COMPOSIÇÃO DOS CUSTOS REFERENTE Á MÃO-DE-OBRA"]
[1,"Tipo de serviço",null,"Limpeza e Conservação"]
[2,"Classificação Brasileira de Ocupações"]
[3,"Salário Normativo da Categoria Profissional "]
[4,"Salário Mínimo Nacional"]
[5,"Categoria profissional (vinculada à execução contratual) ",null,"Auxiliar de Serviços Gerais"]
[6,"Data base da categoria (dia/mês/ano) "]
[]
["MÓDULO 1 : COMPOSIÇÃO DA REMUNERAÇÃO"]
[1,"Remuneração",null,"%","Valor (R$) "]
["A ","Salário Base  (Cláus. 3ª da CCT 2025)"]
["B","Adicional de Insalubridade"]
["TOTAL DO MÓDULO 1",null,null,null,{"$f":"SUM(E33:E34)","v":0}]
[]
["MÓDULO 2: ENCARGOS, BENEFÍCIOS ANUAIS, MENSAIS E DIÁRIOS"]
["SUBMÓDULO 2.1 - 13º SALÁRIO, FÉRIAS E ADICIONAL DE FÉRIAS"]
["2.1","13º salário e adicional de férias ",null,"%","Valor (R$) "]
["A ","13º (décimo terceiro) Salário             ",null,null,{"$f":"D40*E35","v":0}]
["B ","Férias + Adicional de Férias",null,null,{"$f":"D41*E35","v":0}]
["TOTAL DO SUBMÓDULO 2.1",null,null,{"$f":"D40+D41","v":0},{"$f":"SUM(E40:E41)","v":0}]
[]
["SUBMÓDULO 2.2 - ENCARGOS PREVIDENCIÁRIOS, FGTS "]
["2.2","Encargos previdenciários e FGTS ",null,"%","Valor (R$) "]
["A ","INSS ",null,null,{"$f":"($E$35+$E$42)*D46","v":0}]
["B ","Salário Educação ",null,null,{"$f":"($E$35+$E$42)*D47","v":0}]
["C","SAT - Riscos Ambientais de Trabalho (RAT  X FAP )",null,null,0]
["D","SESC/SESI ",null,null,0]
["E","SENAC/SENAI ",null,null,0]
["F ","SEBRAE ",null,null,0]
["G","INCRA",null,null,0]
["H","FGTS",null,null,0]
["TOTAL DO SUBMÓDULO 2.2",null,null,{"$f":"SUM(D46:D53)","v":0},{"$f":"SUM(E46:E53)","v":0}]
[]
["SUBMÓDULO 2.3 -BENEFÍCIOS MENSAIS E DIÁRIOS "]
["2.3","Benefícios",null,null,"Valor (R$) "]
["A","Vale Transporte "]
["B","Vale Alimentação/Refeição "]
["C","Seguro de Vida, AssistênciaFuneral e Auxílio Alimentação  "]
["D","Apoio, auxílios e serviços "]
["E","Outros "]
["TOTAL DO SUBMÓDULO 2.3",null,null,null,{"$f":"SUM(E58:E62)","v":0}]
[]
[]
["QUADRO RESUMO DO MÓDULO 2 - ENCARGOS E BENEFÍCIOS ANUAIS, MENSAIS E DIÁRIOS"]
[null,"Encargos e benefícios anuais, mensis e diários",null,"% ","Valor (R$) "]
["2.1","13º Salário, Férias e Adicional de Férias",null,null,{"$f":"E42","v":0}]
["2.2","GPS, FGTS e outras contribuições",null,null,{"$f":"E54","v":0}]
["2.3","Benefícios Mensais e Diários"]
["VALOR TOTAL DO MÓDULO 2",null,null,{"$f":"SUM(D68:D70)","v":0},{"$f":"SUM(E68:E70)","v":0}]
[]
["MÓDULO 3: PROVISÃO PARA RESCISÃO"]
["MÓDULO 3: PROVISÃO PARA RESCISÃO"]
[3,"Provisão para rescisão ",null,"% ","Valor (R$) "]
["A ","Aviso prévio indenizado  (acrescido de 3 dias do primeiro ano e 3 dias a cada ano de aviso prévio proporcional, totalizando 45 dias) - percentual relativo a composição de 60 meses \"=(((1/30)*45)/60)*5%\"",null,null,{"$f":"D76*$E$35","v":0}]
["B ","Incidência do FGTS  sobre aviso prévio indenizado  ",null,null,{"$f":"D53*E76","v":0}]
["C","Multa do FGTS e contribuição social sobre o Aviso Prévio Indenizado",null,null,{"$f":"($E$35)*D78","v":0}]
["D","Aviso prévio trabalhado. Redução de 7 dias ou 2 horas por dia  (acrescido de 3 dias do primeiro ano e 3 dias a cada ano de aviso prévio proporcional, totalizando 22 dias) - percentual relativo a composição de 60 meses \"=(22/30)/60\"",null,null,{"$f":"D79*$E$35","v":0}]
["E","Incidência dos encargos do submódulo 2.2 sobre o Aviso Prévio Trabalhado",null,null,{"$f":"D54*E79","v":0}]
["F","Multa do FGTS sobre aviso prévio trabalhado e indenizado ",null,null,{"$f":"D81*$E$35","v":0}]
["TOTAL DO MÓDULO 3",null,null,{"$f":"SUM(D76:D81)","v":0},{"$f":"SUM(E76:E81)","v":0}]
[]
["MÓDULO 4: CUSTO DE REPOSIÇÃO DO PROFISSIONAL AUSENTE"]
["SUBMÓDULO 4.1 - AUSÊNCIAS LEGAIS"]
["Base de Cálculo - Exceto Férias: (Módulo 1+Submódulo 2.1+Submódulo 2.2+Multa do FGTS)",null,null,null,{"$f":"(E35+E42+E54+E81)","v":0}]
["4.1","Ausências Legais",null,"% ","Valor (R$) "]
["A ","Férias (Custos com 13º, férias e 1/3 de férias do substituto)",null,null,{"$f":"D88*(E35+E54)","v":0}]
["B ","Ausências Legais",null,null,{"$f":"D89*$E$86","v":0}]
["C ","Licença paternidade ",null,null,{"$f":"D90*$E$86","v":0}]
["D ","Ausência por Acidente de trabalho ",null,null,{"$f":"D91*$E$86","v":0}]
["E ","Afastamento Maternidade",null,null,{"$f":"D92*$E$86","v":0}]
["F","Outros (Ausência por doença)",null,null,{"$f":"D93*$E$35","v":0}]
["TOTAL DO SUBMÓDULO 4.1",null,null,{"$f":"SUM(D88:D93)","v":0},{"$f":"SUM(E88:E93)","v":0}]
[]
["SUBMÓDULO 4.2 - INTRAJORNADA"]
["4.2","Intrajornada",null,"% ","Valor (R$) "]
["A ","Intervalo para repouso ou alimentação ",null,0,{"$f":"(E35+E71+E82)/220*1*15*D98","v":0}]
["TOTAL DO SUBMÓDULO 4.2",null,null,null,{"$f":"E98","v":0}]
[]
["QUADRO RESUMO DO MÓDULO 4 - CUSTO DE REPOSIÇÃO DO PROFISSIONAL AUSENTE"]
[null,"Custo de reposição do profissional ausente",null,"% ","Valor (R$) "]
["4.1","Ausências Legais",null,{"$f":"D94","v":0},{"$f":"E94","v":0}]
["4.2","Intrajornada",null,0,{"$f":"E99","v":0}]
["TOTAL DO MÓDULO 4",null,null,{"$f":"SUM(D103:D104)","v":0},{"$f":"E103+E104","v":0}]
[]
["MÓDULO 5: INSUMOS DIVERSOS"]
["MÓDULO 5: INSUMOS DIVERSOS"]
[5,"INSUMOS DIVERSOS",null,null,"Valor (R$) "]
["A ","Uniformes"]
["B ","Insumos e EPIs"]
["TOTAL DOS INSUMOS DIVERSOS",null,null,null,{"$f":"SUM(E110:E111)","v":0}]
[{"$nulls":4},{"$f":"D71+D82+D105","v":0}]
[]
["MÓDULO 6: CUSTOS INDIRETOS, TRIBUTOS E LUCRO"]
["MÓDULO 6: CUSTOS INDIRETOS, TRIBUTOS E LUCRO"]
[6,"Custos Indiretos",null,"%","Valor (R$) "]
["A ","CUSTOS INDIRETOS",null,null,{"$f":"D118*E133","v":0}]
["B ","LUCRO",null,null,{"$f":"D119*(E118+E133)","v":0}]
["C","TRIBUTOS"]
[null,"PIS",null,null,{"$f":"($E$118+$E$119+$E$133)/(1-($D$121+$D$122+$D$123))*D121","v":0}]
[null,"COFINS",null,null,{"$f":"($E$118+$E$119+$E$133)/(1-($D$121+$D$122+$D$123))*D122","v":0}]
[null,"ISS ",null,null,{"$f":"($E$118+$E$119+$E$133)/(1-($D$121+$D$122+$D$123))*D123","v":0}]
["VALOR DO MÓDULO 6",null,null,{"$f":"SUM(D118:D123)","v":0},{"$f":"SUM(E118:E123)","v":0}]
[]
["QUADRO RESUMO DO CUSTO POR EMPREGADO"]
["MÃO DE OBRA VINCULADA Á EXECUÇÃO CONTRATUAL (VALOR POR EMPREGADO)",null,null,null,"(R$) "]
["A ","Módulo 1 - Composição da Remuneração ",null,null,{"$f":"E35","v":0}]
["B ","Módulo 2 - Encargos. Benefícios Anuais, Mensais e Diários ",null,null,{"$f":"E71","v":0}]
["C ","Módulo 3 - Provisão para Rescisão",null,null,{"$f":"E82","v":0}]
["D ","Módulo 4 - Custo de Reposição do Profissional Ausente",null,null,{"$f":"E105","v":0}]
["E ","Módulo 5 - Insumos Diversos",null,null,{"$f":"E112","v":0}]
["Subtotal (A + B + C + D+E) ",null,null,null,{"$f":"SUM(E128:E132)","v":0}]
["F","Módulo 6 - Custos indiretos, tributos e lucro ",null,null,{"$f":"E124","v":0}]
["VALOR TOTAL POR EMPREGADO",null,null,null,{"$f":"SUM(E133:E134)","v":0}]

{"sheet":"Uniformes - 13ª SR","index":4,"n_rows":10,"n_cols":6,"rows_kept":10,"cut":false,"hidden":false,"merged":[[4,0,4,5],[11,0,11,4],[9,0,9,4]]}
[]
[]
[]
[]
["UNIFORME - AUXILIAR DE SERVIÇOS GERAIS"]
["Nrº","Item","Unidade","Quantidade Anual","Custo unitário médio","Total"]
[1,"Calça - Comprida, Cor: azul marinho ou cinza; Material: Brim Leve- 100 % Algodão; Com elástico e Cordão Na Cintura; Sem Fecho.","unidade",null,null,{"$f":"D7*E7","v":0}]
[2,"Camiseta - Modelo: Unissex; Manga: Curta; Gola: Canoa; Material: Malha Fria ou Poliester; Cor: azul marinho ou cinza; Sem abotoamento; Logomarca da empresa CONTRATADA.","unidade",null,null,0]
[3,"Meia Vestuário - Cor: Variada; Tamanho: Sob Medida.","par",null,null,0]
["Total (12 meses)",{"$nulls":4},{"$f":"SUM(F7:F9)","v":0}]

{"sheet":"Insumos e EPIs - 13ª SR","index":5,"n_rows":47,"n_cols":6,"rows_kept":47,"cut":false,"hidden":false,"merged":[[4,0,4,5],[6,0,6,1],[46,0,46,4]]}
[]
[]
[]
[]
["INSUMOS E EPIs - 13ª SR/GALPÃO"]
[]
["RELAÇÃO DOS MATERIAIS DE LIMPEZA E UTENSÍLIOS",null,"Unidade","Qtd. Anual estimada","Valor Unitário\nMédio","Valor Final"]
[1,"Balde Mop Espremedor Carro, capacidade mínima de 20 litros","Unid",null,null,{"$f":"E8*D8","v":0}]
[2,"CARRO LIMPEZA - Carro Limpeza Material: Metal E Plástico , Tipo: 4 Rodízios , Comprimento: 114 CM, Largura: 48 CM, Altura: 96 CM, Aplicação: Limpeza Industrial E Comercial , Características Adicionais: 3 Prateleiras, Saco Funcional E Tampa.","Unid",null,null,{"$f":"E9*D9","v":0}]
[3,"Pá coletora de resíduos sólidos, fabricada em material plástico de alta resistência ou metal pintado, com cabo longo (mínimo 80 cm), articulada ou fixa, projetada para uso profissional, facilitando a coleta de resíduos sem necessidade de flexão da coluna. Preferencialmente com sistema de fixação à vassoura para transporte.","Unid",null,null,0]
[4,"Vassoura com cerdas duras - Vassoura com base plástica resistente e cerdas duras em nylon ou material similar, cabo de alumínio ou madeira tratado, com comprimento mínimo de 1,20 m.","Unid",null,null,0]
[5,"Kit 4 Baldes para Carro funcional/limpeza","Unid",null,null,0]
[6,"Saco para lixo 20 litros com 100 unidades - reforçado","Pacote",null,null,0]
[7,"Saco para lixo 60 litros com 100 unidades - reforçado","Pacote",null,null,0]
[8,"Placa de sinalização Piso Molado Amarela Cavalete","Unid",null,null,0]
[9,"Balde Plástico com Alça Capacidade 20 Litros","Unid",null,null,0]
[10,"Rodo de limpeza 60cm - com cabo","Unid",null,null,0]
[11,"Alcool Gel 70% hidratante, antisséptico,de 1ª qualidade, gaIão de 5 litros","Unid.",null,null,0]
[12,"Papel higiênico macio, de 1ª qualidade, folha dupla picotada, rolo com 30 metros • 03 fardos com 16 rolos","Unid.",null,null,0]
[13,"Papel toalha, interfolhado, macio, hidrossolúvel, feito com 100% de celulose na Cor branca, folha dupla - 2000 folhas","Caixa",null,null,0]
[14,"Sabonete líquido, perfumado, galão de 5 litros","Unid.",null,null,0]
[15,"Água sanitária de 1ª qualidade, galão de 5 litros","Unid.",null,null,0]
[16,"Aromatizante de ambiente - desodorizador em aerosol (bom ar)","Unid.",null,null,0]
[17,"Desinfetante concentrado, galão de 5 litros","Unid.",null,null,0]
[18,"Desentupidor manual vaso sanitário","Unid.",null,null,0]
[19,"Esponja dupla face verde/amarelo","Unid.",null,null,0]
[20,"Flanela - 28x48 cm - 6 unidades","Pacote",null,null,0]
[21,"Limpa vidros concentrados, 5 litros","Unid.",null,null,0]
[22,"Sabão em barra ","Unid.",null,null,0]
[23,"Sabão em pó, 1 kg","Caixa",null,null,0]
[24,"Sabão concentrado, limpeza pesada, galão de 5 litros","Unid.",null,null,0]
[25,"Desentupidor manual de pia","Unid.",null,null,0]
[26,"Limpador multiuso (veja ou similar)","Unid.",null,null,0]
[27,"Escova manual com cerdas de nylon","Unid.",null,null,0]
[28,"Escova sanitária com suporte","Unid.",null,null,0]
[29,"Rodo limpa vidro, com 25 cm de largura, com cabo","Unid.",null,null,0]
[{"$f":"A36+1","v":30},"Luvas de látex - Características: ambidestras, com superfície antiderrapante na palma e dedos, cloradas internamente. Com CA válido.","Par",null,null,0]
[{"$f":"A37+1","v":31},"Máscara PFF1 (sem válvula), tipo dobrável ou concha; eficiência de filtração mínima: 80%. Com CA válido.","Unid",null,null,0]
[32,"Calçado cano curto, solado antideslizante e antiderrapante, com palmilha antibacteriana. Com CA válido.","Par",null,null,0]
[33,"Avental impermeável - Tipo: PVC ou napa; tamanho: comprimento mínimo até os joelhos (aproximadamente 1,20 m); fixação: alças ou tiras para ajuste nas costas e pescoço. Com CA válido.","Unid",null,null,0]
[34,"Óculos de proteção - tipo: de segurança com lentes incolores; características: lentes em policarbonato, tratamento antirrisco e antiembaçante; proteção lateral: sim, com hastes ajustáveis. Com CA válido.","Unid",null,null,0]
[35,"Chapéu tipo árabe - Tipo: chapéu de brim ou tecido similar, com proteção de nuca (tipo árabe); cor: clara (reflete o calor); finalidade: proteção contra insolação e radiação solar direta; tamanho: único, ajustável.","Unid",null,null,0]
[36,"Luva de raspa de couro - Tipo: luvas de segurança confeccionadas em raspa de couro bovino; punho: 15 a 20 cm, tipo cano curto ou longo conforme necessidade. Com CA válido.","Par",null,null,0]
[37,"Bota de borracha para limpeza com solado antiderrapante.","Par",null,null,0]
[{"$f":"A43+1","v":37},"Protetor solar (FPS mínimo 30) - Tipo: filtro solar dermatologicamente testado, resistente à água e suor; FPS: mínimo 30, com proteção contra raios UVA e UVB; embalagem individual, com no mínimo 120 ml por colaborador.","Frasco",null,null,0]
[{"$f":"A44+1","v":38},"Crachá de identificação - Material: Pvc ou laminado plástico; Comprimento: 54 MM; Largura: 86 MM (tamanho cartão de crédito); Tipo Impressão: Colorida, Frente/Verso; Acessório: cordão de pescoço com fecho de segurança ou clip retrátil; Conteúdo: foto, nome completo do colaborador, função exercida e logomarca da CONTRATADA.","Unid",null,null,0]
["VALOR TOTAL ANUAL DOS PRODUTOS ",{"$nulls":4},{"$f":"SUM(F8:F46)","v":0}]